[Event "Early-Titled-Tuesday-Blitz-June-18-2024"]
[Site "Chess.com"]
[Date "2024.06.18"]
[Round "6"]
[White "Zhani-Z"]
[Black "Abund"]
[Result "1-0"]
[WhiteElo "2447"]
[BlackElo "2721"]
[TimeControl "180+1"]
[EndTime "9:06:37 PDT"]
[Termination "Zhani-Z won by resignation"]

1. e4 {[%clk 0:03:00.9]} 1... c6 {[%clk 0:02:57.4]} 2. d4 {[%clk 0:03:00.1]}
2... d5 {[%clk 0:02:56.7]} 3. exd5 {[%clk 0:03:00.5]} 3... cxd5 {[%clk
0:02:57.4]} 4. Bd3 {[%clk 0:03:00.1]} 4... Nc6 {[%clk 0:02:57.5]} 5. c3 {[%clk
0:03:00.7]} 5... Nf6 {[%clk 0:02:57.7]} 6. h3 {[%clk 0:02:59.5]} 6... e5 {[%clk
0:02:57.6]} 7. dxe5 {[%clk 0:02:58.7]} 7... Nxe5 {[%clk 0:02:58.5]} 8. Nf3
{[%clk 0:02:59.3]} 8... Nxd3+ {[%clk 0:02:58.3]} 9. Qxd3 {[%clk 0:02:59.2]} 9...
Bd6 {[%clk 0:02:58.9]} 10. O-O {[%clk 0:02:59.3]} 10... O-O {[%clk 0:02:59.1]}
11. Bg5 {[%clk 0:02:49.8]} 11... h6 {[%clk 0:02:58.8]} 12. Bh4 {[%clk
0:02:49.6]} 12... g5 {[%clk 0:02:58.2]} 13. Bg3 {[%clk 0:02:49.5]} 13... Nh5
{[%clk 0:02:58.9]} 14. Bxd6 {[%clk 0:02:46.5]} 14... Qxd6 {[%clk 0:02:59.8]} 15.
Nd4 {[%clk 0:02:34]} 15... Nf4 {[%clk 0:02:55.6]} 16. Qf3 {[%clk 0:02:07.7]}
16... Re8 {[%clk 0:02:39.2]} 17. Nd2 {[%clk 0:02:06.1]} 17... Bd7 {[%clk
0:02:32.8]} 18. Rfe1 {[%clk 0:02:06.2]} 18... a6 {[%clk 0:02:26.3]} 19. Nf1
{[%clk 0:02:02.3]} 19... f6 {[%clk 0:02:15.8]} 20. Ng3 {[%clk 0:01:43.3]} 20...
Re5 {[%clk 0:02:12.5]} 21. Nh5 {[%clk 0:01:33.8]} 21... Rae8 {[%clk 0:02:07.7]}
22. Re3 {[%clk 0:01:30.7]} 22... Rxe3 {[%clk 0:01:43.5]} 23. fxe3 {[%clk
0:01:29]} 23... Nxh5 {[%clk 0:01:43.8]} 24. Qxh5 {[%clk 0:01:29.5]} 24... Kg7
{[%clk 0:01:42.8]} 25. Qxe8 {[%clk 0:01:24.6]} 25... Bxe8 {[%clk 0:01:31.7]} 26.
Nf5+ {[%clk 0:01:24.3]} 26... Kf8 {[%clk 0:01:21.4]} 27. Nxd6 {[%clk 0:01:25.2]}
27... Bc6 {[%clk 0:01:21.5]} 28. Rf1 {[%clk 0:01:19.2]} 28... Ke7 {[%clk
0:01:16.9]} 29. Nf5+ {[%clk 0:01:19.1]} 1-0

[Event "Early-Titled-Tuesday-Blitz-June-18-2024"]
[Site "Chess.com"]
[Date "2024.06.18"]
[Round "6"]
[White "N_Mullodzhanov"]
[Black "ilqar_74"]
[Result "0-1"]
[WhiteElo "2558"]
[BlackElo "2836"]
[TimeControl "180+1"]
[EndTime "9:06:37 PDT"]
[Termination "ilqar_74 won by checkmate"]

1. e4 {[%clk 0:03:00.9]} 1... c5 {[%clk 0:02:57]} 2. c3 {[%clk 0:03:00.3]} 2...
Nf6 {[%clk 0:02:55.2]} 3. e5 {[%clk 0:02:59.8]} 3... Nd5 {[%clk 0:02:53.4]} 4.
Nf3 {[%clk 0:02:59.8]} 4... d6 {[%clk 0:02:52.4]} 5. exd6 {[%clk 0:02:59.2]}
5... e6 {[%clk 0:02:51]} 6. g3 {[%clk 0:02:59.4]} 6... Nc6 {[%clk 0:02:50.8]} 7.
Bg2 {[%clk 0:02:59.5]} 7... Bxd6 {[%clk 0:02:51.4]} 8. O-O {[%clk 0:02:59.8]}
8... O-O {[%clk 0:02:52]} 9. d4 {[%clk 0:03:00.1]} 9... cxd4 {[%clk 0:02:52.4]}
10. Nxd4 {[%clk 0:03:00.7]} 10... Bd7 {[%clk 0:02:50.5]} 11. c4 {[%clk
0:02:57.1]} 11... Nf6 {[%clk 0:02:45.2]} 12. Bg5 {[%clk 0:02:41.7]} 12... Bc5
{[%clk 0:02:43.9]} 13. Bxf6 {[%clk 0:02:20]} 13... gxf6 {[%clk 0:02:43.9]} 14.
Nxc6 {[%clk 0:02:11.5]} 14... Bxc6 {[%clk 0:02:44]} 15. Qg4+ {[%clk 0:02:11.2]}
15... Kh8 {[%clk 0:02:44.2]} 16. Bxc6 {[%clk 0:02:10.7]} 16... bxc6 {[%clk
0:02:44.4]} 17. Nc3 {[%clk 0:02:08.7]} 17... f5 {[%clk 0:02:44.9]} 18. Qf3
{[%clk 0:02:02.8]} 18... Qc7 {[%clk 0:02:37.4]} 19. Rad1 {[%clk 0:02:02]} 19...
Rad8 {[%clk 0:02:36.7]} 20. a3 {[%clk 0:02:00.2]} 20... Bd4 {[%clk 0:02:35.3]}
21. b4 {[%clk 0:01:55.3]} 21... a5 {[%clk 0:02:30]} 22. Rd2 {[%clk 0:01:27.9]}
22... axb4 {[%clk 0:02:22.8]} 23. axb4 {[%clk 0:01:27.5]} 23... Bf6 {[%clk
0:02:05]} 24. Rfd1 {[%clk 0:01:23.2]} 24... Rxd2 {[%clk 0:02:04.6]} 25. Rxd2
{[%clk 0:01:24.1]} 25... Rd8 {[%clk 0:02:04.8]} 26. Rxd8+ {[%clk 0:01:22]} 26...
Qxd8 {[%clk 0:02:05.7]} 27. Ne2 {[%clk 0:01:15.5]} 27... Qb6 {[%clk 0:02:01.4]}
28. c5 {[%clk 0:01:07.8]} 28... Qxb4 {[%clk 0:01:58.1]} 29. Qxc6 {[%clk
0:01:07.6]} 29... Qe1+ {[%clk 0:01:58.3]} 30. Kg2 {[%clk 0:01:07.9]} 30... Qxe2
{[%clk 0:01:58.7]} 31. Qc8+ {[%clk 0:00:54.8]} 31... Kg7 {[%clk 0:01:56.9]} 32.
c6 {[%clk 0:00:55.7]} 32... Bd4 {[%clk 0:01:53.1]} 33. c7 {[%clk 0:00:52.8]}
33... Qxf2+ {[%clk 0:01:53.3]} 34. Kh3 {[%clk 0:00:52.9]} 34... Qf1+ {[%clk
0:01:53.5]} 35. Kh4 {[%clk 0:00:52.3]} 35... Bf6+ {[%clk 0:01:54]} 36. Kh5
{[%clk 0:00:52.5]} 36... Qh3# {[%clk 0:01:54.6]} 0-1

[Event "Early-Titled-Tuesday-Blitz-June-18-2024"]
[Site "Chess.com"]
[Date "2024.06.18"]
[Round "6"]
[White "jeetjain"]
[Black "GM-2024-GM"]
[Result "0-1"]
[WhiteElo "2573"]
[BlackElo "2345"]
[TimeControl "180+1"]
[EndTime "9:06:37 PDT"]
[Termination "GM-2024-GM won by resignation"]

1. Nf3 {[%clk 0:03:00.4]} 1... d5 {[%clk 0:03:00]} 2. e3 {[%clk 0:03:00.2]} 2...
e6 {[%clk 0:02:58.5]} 3. c4 {[%clk 0:03:00.1]} 3... Nf6 {[%clk 0:02:35.3]} 4.
Nc3 {[%clk 0:03:00.1]} 4... Be7 {[%clk 0:02:32]} 5. b3 {[%clk 0:03:00.3]} 5...
O-O {[%clk 0:02:31.2]} 6. Bb2 {[%clk 0:03:00.8]} 6... Nbd7 {[%clk 0:02:27.5]} 7.
Be2 {[%clk 0:03:01]} 7... b6 {[%clk 0:02:17.8]} 8. Qc2 {[%clk 0:03:01.2]} 8...
Bb7 {[%clk 0:02:17.2]} 9. g4 {[%clk 0:03:01.6]} 9... c5 {[%clk 0:02:00.3]} 10.
g5 {[%clk 0:03:01.6]} 10... Ne4 {[%clk 0:02:00.7]} 11. h4 {[%clk 0:02:59.9]}
11... f5 {[%clk 0:01:38.3]} 12. gxf6 {[%clk 0:02:58.3]} 12... Bxf6 {[%clk
0:01:38.6]} 13. Ng5 {[%clk 0:02:46.8]} 13... h6 {[%clk 0:00:54.6]} 14. Nxe6
{[%clk 0:02:45.3]} 14... Qe7 {[%clk 0:00:51.6]} 15. Nxf8 {[%clk 0:02:45.4]}
15... Rxf8 {[%clk 0:00:51.4]} 16. Nxe4 {[%clk 0:02:44.6]} 16... dxe4 {[%clk
0:00:44.7]} 17. O-O-O {[%clk 0:02:42.1]} 17... Ne5 {[%clk 0:00:41.4]} 18. d4
{[%clk 0:02:35.3]} 18... exd3 {[%clk 0:00:41.4]} 19. Bxd3 {[%clk 0:02:35.2]}
19... Nxd3+ {[%clk 0:00:35.8]} 20. Qxd3 {[%clk 0:02:36.1]} 20... Bxb2+ {[%clk
0:00:35.4]} 21. Kxb2 {[%clk 0:02:33.7]} 21... Rxf2+ {[%clk 0:00:34.7]} 22. Kb1
{[%clk 0:02:33.7]} 22... Qe5 {[%clk 0:00:23.5]} 23. Qd8+ {[%clk 0:02:13.7]}
23... Kh7 {[%clk 0:00:23.1]} 24. Rd2 {[%clk 0:02:12.5]} 24... Be4+ {[%clk
0:00:19.3]} 0-1

[Event "Early-Titled-Tuesday-Blitz-June-18-2024"]
[Site "Chess.com"]
[Date "2024.06.18"]
[Round "6"]
[White "Laico"]
[Black "Viktor_Poddubnyi"]
[Result "1-0"]
[WhiteElo "2440"]
[BlackElo "2315"]
[TimeControl "180+1"]
[EndTime "9:06:38 PDT"]
[Termination "Laico won on time"]

1. e4 {[%clk 0:02:57.7]} 1... g6 {[%clk 0:03:00.3]} 2. Nc3 {[%clk 0:02:57.7]}
2... Bg7 {[%clk 0:03:00.7]} 3. f4 {[%clk 0:02:58.3]} 3... c5 {[%clk 0:03:00.4]}
4. Nf3 {[%clk 0:02:59]} 4... Nc6 {[%clk 0:03:00.7]} 5. Bb5 {[%clk 0:02:59.7]}
5... Nd4 {[%clk 0:02:59.4]} 6. O-O {[%clk 0:03:00.4]} 6... Nxb5 {[%clk
0:02:56.2]} 7. Nxb5 {[%clk 0:03:01.3]} 7... d6 {[%clk 0:02:47.4]} 8. d3 {[%clk
0:03:01.3]} 8... Nf6 {[%clk 0:02:46.9]} 9. Nc3 {[%clk 0:03:01.2]} 9... O-O
{[%clk 0:02:46.4]} 10. Qe1 {[%clk 0:03:01.7]} 10... e6 {[%clk 0:02:08.3]} 11. f5
{[%clk 0:02:56.3]} 11... exf5 {[%clk 0:02:00.7]} 12. Qh4 {[%clk 0:02:56.1]}
12... fxe4 {[%clk 0:01:26.4]} 13. dxe4 {[%clk 0:02:57]} 13... Ng4 {[%clk
0:01:19.8]} 14. Bg5 {[%clk 0:02:51.8]} 14... Qb6 {[%clk 0:01:05.2]} 15. Nd5
{[%clk 0:02:51]} 15... Qxb2 {[%clk 0:01:01.7]} 16. h3 {[%clk 0:02:07.3]} 16...
Ne5 {[%clk 0:00:53.9]} 17. Nf6+ {[%clk 0:02:07.5]} 17... Bxf6 {[%clk 0:00:47.3]}
18. Bxf6 {[%clk 0:02:08.4]} 1-0

[Event "Early-Titled-Tuesday-Blitz-June-18-2024"]
[Site "Chess.com"]
[Date "2024.06.18"]
[Round "6"]
[White "Revan_2002"]
[Black "OparinGrigoriy"]
[Result "1-0"]
[WhiteElo "2747"]
[BlackElo "3038"]
[TimeControl "180+1"]
[EndTime "9:06:43 PDT"]
[Termination "Revan_2002 won by resignation"]

1. d4 {[%clk 0:03:00.9]} 1... Nf6 {[%clk 0:02:59.6]} 2. c4 {[%clk 0:03:01.2]}
2... e6 {[%clk 0:03:00]} 3. Nf3 {[%clk 0:03:00.7]} 3... b6 {[%clk 0:03:00.2]} 4.
a3 {[%clk 0:03:00]} 4... Bb7 {[%clk 0:03:00.3]} 5. Nc3 {[%clk 0:03:00.6]} 5...
Ne4 {[%clk 0:03:01]} 6. Nxe4 {[%clk 0:02:39.8]} 6... Bxe4 {[%clk 0:03:01.9]} 7.
g3 {[%clk 0:02:40.2]} 7... Be7 {[%clk 0:02:58.9]} 8. Bg2 {[%clk 0:02:39.7]} 8...
O-O {[%clk 0:02:59.1]} 9. O-O {[%clk 0:02:40.3]} 9... d5 {[%clk 0:02:57]} 10.
cxd5 {[%clk 0:02:38.4]} 10... Qxd5 {[%clk 0:02:57.9]} 11. Bf4 {[%clk 0:02:35.1]}
11... Nd7 {[%clk 0:02:57.9]} 12. Rc1 {[%clk 0:02:31]} 12... c5 {[%clk
0:02:57.1]} 13. dxc5 {[%clk 0:02:28.3]} 13... Nxc5 {[%clk 0:02:58]} 14. Qxd5
{[%clk 0:02:25.9]} 14... Bxd5 {[%clk 0:02:58.9]} 15. Nd2 {[%clk 0:02:20.9]}
15... Rfd8 {[%clk 0:02:57.2]} 16. b4 {[%clk 0:02:17.7]} 16... Na4 {[%clk
0:02:54.9]} 17. e4 {[%clk 0:02:11.5]} 17... Bb7 {[%clk 0:02:26.6]} 18. Rc7
{[%clk 0:02:10.7]} 18... Bd6 {[%clk 0:02:25.9]} 19. Bxd6 {[%clk 0:01:58.5]}
19... Rxd6 {[%clk 0:02:26.8]} 20. Nc4 {[%clk 0:01:34.8]} 20... Rc6 {[%clk
0:02:25]} 21. Rxb7 {[%clk 0:01:33.7]} 21... Rxc4 {[%clk 0:02:24.7]} 22. Rd1
{[%clk 0:01:34.2]} 22... a5 {[%clk 0:02:17.6]} 23. Rdd7 {[%clk 0:01:29.1]} 23...
Rf8 {[%clk 0:02:17.3]} 24. Rbc7 {[%clk 0:01:19.9]} 24... Rc3 {[%clk 0:02:04.2]}
25. Bf1 {[%clk 0:01:17.2]} 25... axb4 {[%clk 0:02:00.5]} 26. axb4 {[%clk
0:01:16]} 26... Rb3 {[%clk 0:01:54.5]} 27. Bc4 {[%clk 0:01:15]} 27... Rxb4
{[%clk 0:01:43.6]} 28. Rxf7 {[%clk 0:01:12]} 28... Rxf7 {[%clk 0:01:17.6]} 29.
Rc8+ {[%clk 0:01:11.5]} 1-0

[Event "Early-Titled-Tuesday-Blitz-June-18-2024"]
[Site "Chess.com"]
[Date "2024.06.18"]
[Round "6"]
[White "cycygogne"]
[Black "JAN2404"]
[Result "1-0"]
[WhiteElo "2219"]
[BlackElo "2046"]
[TimeControl "180+1"]
[EndTime "9:06:46 PDT"]
[Termination "cycygogne won by resignation"]

1. e4 {[%clk 0:03:00.9]} 1... c5 {[%clk 0:02:57.7]} 2. Nf3 {[%clk 0:03:00.4]}
2... d6 {[%clk 0:02:58]} 3. d4 {[%clk 0:03:00.3]} 3... cxd4 {[%clk 0:02:58.6]}
4. Nxd4 {[%clk 0:03:00.9]} 4... Nf6 {[%clk 0:02:58.6]} 5. Nc3 {[%clk 0:03:01.4]}
5... Nc6 {[%clk 0:02:59.1]} 6. Be3 {[%clk 0:02:57.5]} 6... Ng4 {[%clk
0:02:58.1]} 7. Bb5 {[%clk 0:02:57.4]} 7... Nxe3 {[%clk 0:02:57.2]} 8. fxe3
{[%clk 0:02:58.3]} 8... Bd7 {[%clk 0:02:57.2]} 9. O-O {[%clk 0:02:55.2]} 9... e6
{[%clk 0:02:50.8]} 10. Bxc6 {[%clk 0:02:55.1]} 10... bxc6 {[%clk 0:02:47.6]} 11.
e5 {[%clk 0:02:55.3]} 11... dxe5 {[%clk 0:02:33.7]} 12. Qh5 {[%clk 0:02:39.7]}
12... Qc8 {[%clk 0:01:53.9]} 13. Qxf7+ {[%clk 0:02:32.7]} 13... Kd8 {[%clk
0:01:53.5]} 14. Nb3 {[%clk 0:02:21.2]} 14... Kc7 {[%clk 0:01:48.7]} 15. Rad1
{[%clk 0:02:15.5]} 15... Bd6 {[%clk 0:01:37.5]} 16. Ne4 {[%clk 0:01:44.4]} 16...
Rf8 {[%clk 0:01:15.9]} 17. Qxg7 {[%clk 0:01:44.6]} 17... Rxf1+ {[%clk
0:01:14.5]} 18. Rxf1 {[%clk 0:01:44.5]} 18... Qg8 {[%clk 0:01:08.6]} 19. Rf7
{[%clk 0:01:29.7]} 19... Qxg7 {[%clk 0:00:55.4]} 20. Rxg7 {[%clk 0:01:30.6]}
20... h6 {[%clk 0:00:53]} 21. Nbc5 {[%clk 0:01:12.2]} 1-0

[Event "Early-Titled-Tuesday-Blitz-June-18-2024"]
[Site "Chess.com"]
[Date "2024.06.18"]
[Round "6"]
[White "ReadySkate"]
[Black "annasargsyan_m"]
[Result "0-1"]
[WhiteElo "2806"]
[BlackElo "2619"]
[TimeControl "180+1"]
[EndTime "9:06:49 PDT"]
[Termination "annasargsyan_m won by checkmate"]

1. d4 {[%clk 0:03:00.9]} 1... d5 {[%clk 0:02:52.3]} 2. c4 {[%clk 0:03:01.1]}
2... c6 {[%clk 0:02:52.9]} 3. Nc3 {[%clk 0:03:01.1]} 3... Nf6 {[%clk 0:02:53.1]}
4. Nf3 {[%clk 0:03:01.4]} 4... dxc4 {[%clk 0:02:52.3]} 5. a4 {[%clk 0:03:00.5]}
5... Bf5 {[%clk 0:02:51.6]} 6. Ne5 {[%clk 0:03:00.6]} 6... Nbd7 {[%clk
0:02:49.4]} 7. Nxc4 {[%clk 0:03:00.4]} 7... Qc7 {[%clk 0:02:50]} 8. g3 {[%clk
0:03:00.5]} 8... e5 {[%clk 0:02:48.1]} 9. dxe5 {[%clk 0:03:01]} 9... Nxe5 {[%clk
0:02:48]} 10. Bf4 {[%clk 0:03:01.3]} 10... Nfd7 {[%clk 0:02:48.6]} 11. Bg2
{[%clk 0:03:01.3]} 11... g5 {[%clk 0:02:48.9]} 12. Ne3 {[%clk 0:03:01.3]} 12...
gxf4 {[%clk 0:02:48.3]} 13. Nxf5 {[%clk 0:03:01.7]} 13... O-O-O {[%clk
0:02:48.9]} 14. Qc2 {[%clk 0:03:01.5]} 14... Nc5 {[%clk 0:02:39.9]} 15. O-O
{[%clk 0:02:38.1]} 15... fxg3 {[%clk 0:02:39.3]} 16. hxg3 {[%clk 0:02:39]} 16...
a5 {[%clk 0:02:39]} 17. Ne4 {[%clk 0:02:34.6]} 17... Ne6 {[%clk 0:02:32.4]} 18.
Rac1 {[%clk 0:02:30.8]} 18... h5 {[%clk 0:02:30.6]} 19. Qc3 {[%clk 0:01:59.2]}
19... Bb4 {[%clk 0:02:28.6]} 20. Qb3 {[%clk 0:01:58.1]} 20... Ng4 {[%clk
0:02:15.7]} 21. Bh3 {[%clk 0:01:27.2]} 21... Rdg8 {[%clk 0:02:14]} 22. Bxg4
{[%clk 0:01:23.3]} 22... Rxg4 {[%clk 0:02:13.2]} 23. Qf3 {[%clk 0:01:21.4]}
23... Qe5 {[%clk 0:02:04.4]} 24. Rfd1 {[%clk 0:01:16.6]} 24... Qxe4 {[%clk
0:02:00]} 25. Qxe4 {[%clk 0:01:03.3]} 25... Rxe4 {[%clk 0:02:00.9]} 26. e3
{[%clk 0:01:03.8]} 26... Re5 {[%clk 0:01:56.3]} 27. Nh4 {[%clk 0:01:01.3]} 27...
Rd8 {[%clk 0:01:54.1]} 28. Rxd8+ {[%clk 0:00:59.1]} 28... Kxd8 {[%clk 0:01:55]}
29. Kf1 {[%clk 0:00:56.5]} 29... Rc5 {[%clk 0:01:53.9]} 30. Rd1+ {[%clk
0:00:56.2]} 30... Rd5 {[%clk 0:01:54.6]} 31. Rc1 {[%clk 0:00:55.9]} 31... Rd2
{[%clk 0:01:54]} 32. b3 {[%clk 0:00:56.1]} 32... Ng5 {[%clk 0:01:51.8]} 33. Rc4
{[%clk 0:00:51.4]} 33... Nh3 {[%clk 0:01:48.8]} 34. f4 {[%clk 0:00:46.5]} 34...
Rf2# {[%clk 0:01:47.5]} 0-1

[Event "Early-Titled-Tuesday-Blitz-June-18-2024"]
[Site "Chess.com"]
[Date "2024.06.18"]
[Round "6"]
[White "GAusal"]
[Black "JoliyRoger"]
[Result "1-0"]
[WhiteElo "2218"]
[BlackElo "2437"]
[TimeControl "180+1"]
[EndTime "9:06:49 PDT"]
[Termination "GAusal won by resignation"]

1. d4 {[%clk 0:03:00.9]} 1... Nf6 {[%clk 0:02:30.1]} 2. Nf3 {[%clk 0:03:00.3]}
2... e6 {[%clk 0:02:30.3]} 3. Bf4 {[%clk 0:02:58.2]} 3... c5 {[%clk 0:02:25]} 4.
e3 {[%clk 0:02:57.8]} 4... d5 {[%clk 0:02:25.4]} 5. c3 {[%clk 0:02:57.1]} 5...
Bd6 {[%clk 0:02:25.1]} 6. Ne5 {[%clk 0:02:55.3]} 6... Qc7 {[%clk 0:02:25.4]} 7.
Nd2 {[%clk 0:02:52.8]} 7... Nc6 {[%clk 0:02:21.7]} 8. Ndf3 {[%clk 0:02:51.9]}
8... O-O {[%clk 0:02:20]} 9. Bd3 {[%clk 0:02:49.5]} 9... Ne4 {[%clk 0:02:12.3]}
10. Rc1 {[%clk 0:02:47.7]} 10... f6 {[%clk 0:01:51.2]} 11. Nxc6 {[%clk 0:02:47]}
11... Bxf4 {[%clk 0:01:37.8]} 12. exf4 {[%clk 0:02:41.3]} 12... bxc6 {[%clk
0:01:36]} 13. g3 {[%clk 0:02:40.1]} 13... a5 {[%clk 0:01:16.7]} 14. O-O {[%clk
0:02:38.8]} 14... Ba6 {[%clk 0:01:17.1]} 15. Bxa6 {[%clk 0:02:35.2]} 15... Rxa6
{[%clk 0:01:17.3]} 16. Qe2 {[%clk 0:02:28.7]} 16... Rb6 {[%clk 0:01:07.7]} 17.
b3 {[%clk 0:02:26.8]} 17... a4 {[%clk 0:00:57.4]} 18. dxc5 {[%clk 0:02:25.4]}
18... Nxc5 {[%clk 0:00:56.4]} 19. b4 {[%clk 0:02:25.5]} 19... Ne4 {[%clk
0:00:56.7]} 20. Nd4 {[%clk 0:02:23.6]} 20... e5 {[%clk 0:00:48.8]} 21. Ne6
{[%clk 0:02:22.6]} 21... Qd6 {[%clk 0:00:48.7]} 22. Nxf8 {[%clk 0:02:22.4]}
22... Kxf8 {[%clk 0:00:49.1]} 23. fxe5 {[%clk 0:02:22.6]} 23... fxe5 {[%clk
0:00:49.6]} 24. f4 {[%clk 0:02:20.8]} 24... Kg8 {[%clk 0:00:40]} 25. fxe5 {[%clk
0:02:20.5]} 25... Qxe5 {[%clk 0:00:40.7]} 26. c4 {[%clk 0:02:18.5]} 26... Rxb4
{[%clk 0:00:32.1]} 27. cxd5 {[%clk 0:02:17.7]} 27... Qxd5 {[%clk 0:00:32.6]} 28.
Rcd1 {[%clk 0:02:16.5]} 28... Rd4 {[%clk 0:00:32.6]} 29. Rxd4 {[%clk 0:02:12.4]}
29... Qxd4+ {[%clk 0:00:33.1]} 30. Kg2 {[%clk 0:02:11.8]} 30... h6 {[%clk
0:00:31.7]} 31. Rf4 {[%clk 0:02:03.9]} 1-0

[Event "Early-Titled-Tuesday-Blitz-June-18-2024"]
[Site "Chess.com"]
[Date "2024.06.18"]
[Round "6"]
[White "NovakRatko"]
[Black "mfschulz"]
[Result "1-0"]
[WhiteElo "2424"]
[BlackElo "2233"]
[TimeControl "180+1"]
[EndTime "9:06:53 PDT"]
[Termination "NovakRatko won by resignation"]

1. d4 {[%clk 0:02:51.6]} 1... Nf6 {[%clk 0:02:58.8]} 2. c4 {[%clk 0:02:52]} 2...
c5 {[%clk 0:02:58.7]} 3. dxc5 {[%clk 0:02:51.9]} 3... Na6 {[%clk 0:02:56.2]} 4.
Be3 {[%clk 0:02:51.7]} 4... e6 {[%clk 0:02:49.4]} 5. a3 {[%clk 0:02:51.6]} 5...
Bxc5 {[%clk 0:02:47.2]} 6. Bxc5 {[%clk 0:02:51.5]} 6... Nxc5 {[%clk 0:02:47.3]}
7. b4 {[%clk 0:02:52.4]} 7... Nce4 {[%clk 0:02:47.2]} 8. f3 {[%clk 0:02:49.7]}
8... Qb6 {[%clk 0:02:31.7]} 9. fxe4 {[%clk 0:02:47.1]} 9... Nxe4 {[%clk
0:02:29.6]} 10. c5 {[%clk 0:02:47.1]} 10... Qc7 {[%clk 0:02:25.7]} 11. Qd4
{[%clk 0:02:46.7]} 11... d5 {[%clk 0:02:22.5]} 12. Qxg7 {[%clk 0:02:41.3]} 12...
Rf8 {[%clk 0:02:18.6]} 13. Nc3 {[%clk 0:02:31.1]} 13... Qf4 {[%clk 0:02:08.7]}
14. Nxe4 {[%clk 0:02:29]} 14... dxe4 {[%clk 0:02:08.8]} 15. Qg3 {[%clk 0:02:18]}
15... Qf6 {[%clk 0:02:06.8]} 16. Rc1 {[%clk 0:02:17.6]} 16... Bd7 {[%clk
0:02:03.8]} 17. Qc3 {[%clk 0:02:17.6]} 17... Qh4+ {[%clk 0:01:57.7]} 18. g3
{[%clk 0:02:17.2]} 18... Qh6 {[%clk 0:01:56.2]} 19. e3 {[%clk 0:02:16.9]} 19...
O-O-O {[%clk 0:01:54.7]} 20. Bg2 {[%clk 0:02:16.6]} 20... f5 {[%clk 0:01:52.3]}
21. Ne2 {[%clk 0:02:16.3]} 21... Bb5 {[%clk 0:01:52.3]} 22. Nd4 {[%clk
0:02:14.4]} 22... Bd3 {[%clk 0:01:49.8]} 23. Kd2 {[%clk 0:02:04.8]} 23... e5
{[%clk 0:01:43]} 24. Nb5 {[%clk 0:01:59.8]} 24... Bxb5+ {[%clk 0:01:42.5]} 25.
Kc2 {[%clk 0:01:48.3]} 25... Qxe3 {[%clk 0:01:36.6]} 26. Qxe3 {[%clk 0:01:47.5]}
26... Bd3+ {[%clk 0:01:34.7]} 27. Kb2 {[%clk 0:01:44.5]} 27... f4 {[%clk
0:01:34.1]} 28. gxf4 {[%clk 0:01:43.7]} 28... exf4 {[%clk 0:01:34.3]} 29. Qh3+
{[%clk 0:01:43.3]} 29... Kb8 {[%clk 0:01:33.5]} 30. Rhd1 {[%clk 0:01:38.2]}
30... f3 {[%clk 0:01:33.1]} 31. Bf1 {[%clk 0:01:36.7]} 31... Bxf1 {[%clk
0:01:31.2]} 32. Rxf1 {[%clk 0:01:36.3]} 32... Rd2+ {[%clk 0:01:29]} 33. Kc3
{[%clk 0:01:35.1]} 33... Ra2 {[%clk 0:01:26.9]} 34. Kb3 {[%clk 0:01:31.3]} 34...
Re2 {[%clk 0:01:26.2]} 35. Qd7 {[%clk 0:01:29]} 35... Rc8 {[%clk 0:01:09.2]} 36.
c6 {[%clk 0:01:26.2]} 1-0

[Event "Early-Titled-Tuesday-Blitz-June-18-2024"]
[Site "Chess.com"]
[Date "2024.06.18"]
[Round "6"]
[White "ClauAmura"]
[Black "bazar-wokzal"]
[Result "0-1"]
[WhiteElo "2383"]
[BlackElo "2583"]
[TimeControl "180+1"]
[EndTime "9:06:56 PDT"]
[Termination "bazar-wokzal won by resignation"]

1. d4 {[%clk 0:03:00.9]} 1... Nf6 {[%clk 0:02:59.3]} 2. c4 {[%clk 0:03:01.3]}
2... Nc6 {[%clk 0:02:59.1]} 3. Nc3 {[%clk 0:03:01.7]} 3... e5 {[%clk 0:02:58.8]}
4. d5 {[%clk 0:02:59.8]} 4... Ne7 {[%clk 0:02:58.8]} 5. g3 {[%clk 0:02:59.4]}
5... Ng6 {[%clk 0:02:58.8]} 6. Bg2 {[%clk 0:03:00.2]} 6... Bc5 {[%clk
0:02:58.7]} 7. Nf3 {[%clk 0:02:56.2]} 7... a5 {[%clk 0:02:55.2]} 8. Ng5 {[%clk
0:02:52.3]} 8... d6 {[%clk 0:02:49.5]} 9. O-O {[%clk 0:02:50.9]} 9... O-O {[%clk
0:02:42.1]} 10. Nge4 {[%clk 0:02:50.8]} 10... Nxe4 {[%clk 0:02:39.5]} 11. Nxe4
{[%clk 0:02:51.7]} 11... Bb6 {[%clk 0:02:39]} 12. c5 {[%clk 0:02:43.2]} 12...
dxc5 {[%clk 0:02:36.5]} 13. Nd2 {[%clk 0:02:36]} 13... Bd7 {[%clk 0:02:21.7]}
14. Nc4 {[%clk 0:02:35.3]} 14... Bb5 {[%clk 0:02:19]} 15. Qc2 {[%clk 0:02:30.7]}
15... Ne7 {[%clk 0:01:57.4]} 16. Rd1 {[%clk 0:02:29.2]} 16... Bxc4 {[%clk
0:01:53.2]} 17. Qxc4 {[%clk 0:02:28.4]} 17... Nc8 {[%clk 0:01:53.3]} 18. Be3
{[%clk 0:02:24.4]} 18... Nd6 {[%clk 0:01:52.9]} 19. Qc3 {[%clk 0:02:25.1]} 19...
c4 {[%clk 0:01:48.9]} 20. Bxb6 {[%clk 0:02:23.6]} 20... cxb6 {[%clk 0:01:48.8]}
21. Qxe5 {[%clk 0:02:24.1]} 21... Re8 {[%clk 0:01:46.2]} 22. Qh5 {[%clk
0:02:22.5]} 22... Qf6 {[%clk 0:01:35.1]} 23. Rd2 {[%clk 0:02:15.1]} 23... b5
{[%clk 0:01:26.3]} 24. e3 {[%clk 0:02:14.6]} 24... b4 {[%clk 0:01:25.7]} 25. Rd4
{[%clk 0:02:08.5]} 25... b5 {[%clk 0:01:22.1]} 26. Rad1 {[%clk 0:01:58.2]} 26...
a4 {[%clk 0:01:12.9]} 27. a3 {[%clk 0:01:53.9]} 27... b3 {[%clk 0:01:02.8]} 28.
e4 {[%clk 0:01:48.7]} 28... b4 {[%clk 0:01:00]} 29. f4 {[%clk 0:01:43]} 29...
bxa3 {[%clk 0:00:50.4]} 30. e5 {[%clk 0:01:43.1]} 30... Qf5 {[%clk 0:00:45.7]}
31. bxa3 {[%clk 0:01:39.5]} 31... Qxh5 {[%clk 0:00:44.2]} 0-1